[Event "WJCC U20 Girls 2019"]
[Site "New Delhi"]
[Date "2019.10.23"]
[Round "9.20"]
[White "Bhagyashree Patil"]
[Black "Pychova, Nela"]
[Result "1/2-1/2"]
[ECO "B13"]
[WhiteElo "1802"]
[BlackElo "2178"]
[Annotator "ChessBase"]
[PlyCount "70"]
[EventDate "2019.10.15"]
[EventType "swiss"]
[EventCountry "IND"]
[SourceTitle "playchess.com"]
[Source "ChessBase"]
[SourceQuality "1"]
[TimeControl "40/5400+30:1800+30"]

1. e4 {[%emt 0:00:00]} c6 {[%emt 0:00:00]} 2. d4 {[%emt 0:00:00]} d5 {[%emt 0:00:00]} 3. exd5 {[%emt 0:00:26]} cxd5 {[%emt 0:00:00]} 4. Bd3 {[%emt 0:00:16]} g6 {[%emt 0:00:38]} 5. Ne2 {[%emt 0:01:33]} Bf5 {[%emt 0:09:03]} 6. O-O {[%emt 0:01:56]} Nf6 {[%emt 0:06:20]} 7. Ng3 {[%emt 0:02:13]} Bxd3 {[%emt 0:01:17]} 8. Qxd3 {[%emt 0:00:13]} Bg7 {[%emt 0:00:13]} 9. Nd2 {[%emt 0:02:43]} O-O {[%emt 0:01:21]} 10. Nf3 {[%emt 0:05:43]} Nc6 {[%emt 0:00:32]} 11. Bf4 {[%emt 0:02:12]} Rc8 {[%emt 0:03:51]} 12. c3 {[%emt 0:00:22]} a6 {[%emt 0:01:02]} 13. Rac1 {[%emt 0:06:55]} b5 {[%emt 0:00:58]} 14. b4 {[%emt 0:02:55]} Qb6 {[%emt 0:01:29]} 15. Nd2 {[%emt 0:01:15]} Rfe8 {[%emt 0:14:33]} 16. Rfe1 {[%emt 0:02:00]} Nd7 {[%emt 0:01:20]} 17. Be3 {[%emt 0:11:38]} Qb8 {[%emt 0:02:44]} 18. Nb3 {[%emt 0:02:09]} e5 {[%emt 0:07:34]} 19. Ne2 {[%emt 0:07:42]} e4 {[%emt 0:04:40]} 20. Qb1 {[%emt 0:05:40]} Nd8 {[%emt 0:06:45]} 21. Nc5 {[%emt 0:03:08]} Qa7 {[%emt 0:19:46]} 22. Rc2 {[%emt 0:13:24]} Nb6 {[%emt 0:01:16]} 23. Bc1 {[%emt 0:01:15]} f5 {[%emt 0:02:16]} 24. a4 {[%emt 0:05:01]} Nc4 {[%emt 0:08:27]} 25. Ra2 {[%emt 0:03:28]} Qb6 {[%emt 0:02:32]} 26. axb5 {[%emt 0:08:59]} axb5 {[%emt 0:00:15]} 27. Bf4 {[%emt 0:02:51]} Nc6 {[%emt 0:00:54]} 28. Ra6 {[%emt 0:00:10]} Qd8 {[%emt 0:00:06]} 29. Qc1 {[%emt 0:02:43]} Bf6 {[%emt 0:00:42]} 30. Bh6 {[%emt 0:00:48]} Qe7 {[%emt 0:03:01]} 31. Nf4 {[%emt 0:01:25]} Qf7 {[%emt 0:00:32]} 32. Nh3 {[%emt 0:00:21]} Nb8 {[%emt 0:00:43]} 33. Ra2 {[%emt 0:01:51]} Nc6 {[%emt 0:00:51]} 34. Ra6 {[%emt 0:00:22]} Nb8 {[%emt 0:00:26]} 35. Ra2 {[%emt 0:00:14]} Nc6 {[%emt 0:00:16]} 1/2-1/2

[Event "WJCC U20 Girls 2019"]
[Site "New Delhi"]
[Date "2019.10.23"]
[Round "9.22"]
[White "Nomindalai Tumurbaatar"]
[Black "Harshita Guddanti"]
[Result "1/2-1/2"]
[ECO "A45"]
[WhiteElo "2061"]
[BlackElo "2123"]
[Annotator "ChessBase"]
[PlyCount "87"]
[EventDate "2019.10.15"]
[EventType "swiss"]
[EventCountry "IND"]
[SourceTitle "playchess.com"]
[Source "ChessBase"]
[SourceQuality "1"]
[TimeControl "40/5400+30:1800+30"]

1. d4 {[%emt 0:00:00]} Nf6 {[%emt 0:00:00]} 2. Bf4 {[%emt 0:00:00]} e6 {[%emt 0:00:22]} 3. e3 {[%emt 0:00:04]} c5 {[%emt 0:01:05]} 4. c3 {[%emt 0:00:31]} Nc6 {[%emt 0:01:31]} 5. Nd2 {[%emt 0:00:20]} d5 {[%emt 0:00:48]} 6. Ngf3 {[%emt 0:00:12]} Bd6 {[%emt 0:00:42]} 7. Bg3 {[%emt 0:00:12]} O-O {[%emt 0:00:39]} 8. Bd3 {[%emt 0:00:15]} b6 {[%emt 0:00:28]} 9. Qe2 {[%emt 0:00:13]} Bb7 {[%emt 0:03:53]} 10. Rd1 {[%emt 0:00:16]} Be7 {[%emt 0:15:57]} 11. Ne5 {[%emt 0:04:31]} g6 {[%emt 0:01:37]} 12. f4 {[%emt 0:07:35]} Nh5 {[%emt 0:09:44]} 13. O-O {[%emt 0:01:18]} f5 {[%emt 0:07:10]} 14. Be1 {[%emt 0:07:01]} Qc7 {[%emt 0:03:43]} 15. Ndf3 {[%emt 0:07:43]} Bf6 {[%emt 0:08:05]} 16. Kh1 {[%emt 0:06:50]} a5 {[%emt 0:04:49]} 17. Nxc6 {[%emt 0:05:53]} Bxc6 {[%emt 0:03:20]} 18. Rg1 {[%emt 0:01:06]} Ba4 {[%emt 0:08:11]} 19. b3 {[%emt 0:10:15]} Bd7 {[%emt 0:02:45]} 20. g4 {[%emt 0:10:07]} fxg4 {[%emt 0:02:35]} 21. Ne5 {[%emt 0:02:32]} Bxe5 {[%emt 0:05:21]} 22. fxe5 {[%emt 0:00:07]} c4 {[%emt 0:05:27]} 23. Qxg4 {[%emt 0:11:57]} cxd3 {[%emt 0:01:30]} 24. Qxh5 {[%emt 0:00:05]} Rf1 {[%emt 0:00:57]} 25. Bd2 {[%emt 0:06:16]} Rxd1 {[%emt 0:01:04]} 26. Qxd1 {[%emt 0:00:04]} a4 {[%emt 0:01:01]} 27. b4 {[%emt 0:01:57]} a3 {[%emt 0:01:32]} 28. Rf1 {[%emt 0:01:38]} Qd8 {[%emt 0:04:18]} 29. Rf6 {[%emt 0:03:27]} Qe7 {[%emt 0:01:19]} 30. Be1 {[%emt 0:00:09]} Rf8 {[%emt 0:02:50]} 31. Bh4 {[%emt 0:00:13]} Qg7 {[%emt 0:01:15]} 32. Bg5 {[%emt 0:06:51]} Bb5 {[%emt 0:01:04]} 33. Rxe6 {[%emt 0:03:55]} Qd7 {[%emt 0:00:29]} 34. Rxb6 {[%emt 0:02:21]} Qf5 {[%emt 0:00:47]} 35. Bf4 {[%emt 0:01:00]} Qe4+ {[%emt 0:00:24]} 36. Kg1 {[%emt 0:00:04]} Rxf4 {[%emt 0:00:26]} 37. exf4 {[%emt 0:00:22]} Qe3+ {[%emt 0:00:03]} 38. Kg2 {[%emt 0:00:14]} Qe4+ {[%emt 0:00:55]} 39. Kg3 {[%emt 0:01:06]} Qe3+ {[%emt 0:00:09]} 40. Kg2 {[%emt 0:00:13]} Qe4+ {[%emt 0:00:45]} 41. Kg3 {[%emt 0:03:36]} Qe3+ {[%emt 0:08:24]} 42. Kg2 {[%emt 0:00:05]} Qe4+ {[%emt 0:05:20]} 43. Kg3 {[%emt 0:00:06]} Qe3+ {[%emt 0:00:03]} 44. Kg2 {[%emt 0:00:06]} 1/2-1/2

[Event "WJCC U20 Girls 2019"]
[Site "New Delhi"]
[Date "2019.10.23"]
[Round "9.23"]
[White "Mirza, Diana"]
[Black "Dwilewicz, Katarzyna"]
[Result "0-1"]
[ECO "C47"]
[WhiteElo "1986"]
[BlackElo "2106"]
[Annotator "RC"]
[PlyCount "50"]
[EventDate "2019.10.15"]
[EventType "swiss"]
[EventCountry "IND"]
[SourceTitle "playchess.com"]
[Source "ChessBase"]
[SourceQuality "1"]
[TimeControl "40/5400+30:1800+30"]

1. e4 {[%emt 0:00:00]} e5 {[%emt 0:00:00]} 2. Nf3 {[%emt 0:00:00]} Nc6 {[%emt 0:00:00]} 3. Nc3 {[%emt 0:00:00]} Nf6 {[%emt 0:00:00]} 4. g3 {[%emt 0:00:00]} d5 {[%emt 0:00:18]} 5. exd5 {[%emt 0:00:00]} Nxd5 {[%emt 0:00:06]} 6. Bg2 {[%emt 0:00:51]} Nxc3 {[%emt 0:00:35]} 7. bxc3 {[%emt 0:00:06]} Bc5 {[%emt 0:01:49]} 8. O-O {[%emt 0:00:27]} O-O {[%emt 0:00:05]} 9. d3 {[%emt 0:00:08]} Qf6 {[%emt 0:02:03]} 10. Ng5 {[%emt 0:02:27]} Qg6 {[%emt 0:03:00]} 11. Ne4 {[%emt 0:07:21]} Bb6 {[%emt 0:00:11]} 12. Ba3 {[%emt 0:03:33]} Re8 {[%emt 0:00:14]} 13. Rb1 {[%emt 0:10:09]} Bg4 {[%emt 0:05:05]} 14. Qd2 {[%emt 0:01:41]} Rad8 {[%emt 0:00:38]} 15. h3 {[%emt 0:05:49]} Bxh3 {[%emt 0:10:23]} 16. Bxh3 {[%emt 0:00:02]} Qxe4 {[%emt 0:00:07]} 17. Bg2 {[%emt 0:00:06]} Qg6 {[%emt 0:02:09]} 18. Rfe1 {[%emt 0:05:52]} f5 {[%emt 0:05:14]} 19. Qe2 {[%emt 0:05:11]} h6 {[%emt 0:09:35]} 20. Rb5 {[%emt 0:10:23]} a6 {[%emt 0:05:16]} 21. Bxc6 {[%emt 0:05:59]} axb5 {[%emt 0:01:07]} 22. Bxe8 {[%emt 0:00:30]} Qxg3+ {[%emt 0:01:42]} 23. Kh1 {[%emt 0:03:19]} Qh3+ {[%emt 0:04:19]} 24. Kg1 {[%emt 0:00:07]} Rxe8 {[%emt 0:00:07]} 25. d4 {[%emt 0:00:49]} Re6 {[%emt 0:02:36]} 0-1

[Event "WJCC U20 Girls 2019"]
[Site "New Delhi"]
[Date "2019.10.23"]
[Round "9.24"]
[White "Katkov, Michelle"]
[Black "Srimathi R"]
[Result "1-0"]
[ECO "B24"]
[WhiteElo "2106"]
[BlackElo "1914"]
[Annotator "ChessBase"]
[PlyCount "81"]
[EventDate "2019.10.15"]
[EventType "swiss"]
[EventCountry "IND"]
[SourceTitle "playchess.com"]
[Source "ChessBase"]
[SourceQuality "1"]
[TimeControl "40/5400+30:1800+30"]

1. e4 {[%emt 0:00:00]} c5 {[%emt 0:00:06]} 2. Nc3 {[%emt 0:00:00]} Nc6 {[%emt 0:00:06]} 3. Bb5 {[%emt 0:00:00]} e6 {[%emt 0:00:05]} 4. Bxc6 {[%emt 0:02:30]} bxc6 {[%emt 0:00:05]} 5. f4 {[%emt 0:06:54]} d5 {[%emt 0:00:38]} 6. Nf3 {[%emt 0:01:53]} Ba6 {[%emt 0:07:25]} 7. d3 {[%emt 0:02:45]} Nf6 {[%emt 0:03:00]} 8. e5 {[%emt 0:05:27]} Nd7 9. O-O {[%emt 0:04:15]} g6 {[%emt 0:06:51]} 10. b3 {[%emt 0:04:48]} Bg7 {[%emt 0:02:46]} 11. Qe1 {[%emt 0:03:46]} O-O {[%emt 0:03:19]} 12. Ba3 {[%emt 0:02:14]} Re8 {[%emt 0:07:45]} 13. Na4 {[%emt 0:04:57]} Bf8 {[%emt 0:02:02]} 14. c4 {[%emt 0:07:43]} Rc8 {[%emt 0:08:27]} 15. Rc1 {[%emt 0:01:33]} Be7 {[%emt 0:04:05]} 16. Rf2 {[%emt 0:02:37]} Bf8 {[%emt 0:07:27]} 17. Rfc2 {[%emt 0:02:21]} f5 {[%emt 0:00:51]} 18. exf6 {[%emt 0:06:07]} Qxf6 {[%emt 0:02:50]} 19. Qa5 {[%emt 0:02:29]} Nb8 {[%emt 0:04:38]} 20. Bxc5 {[%emt 0:05:08]} Qd8 {[%emt 0:09:49]} 21. Qxd8 {[%emt 0:00:48]} Rcxd8 {[%emt 0:00:05]} 22. Bxa7 {[%emt 0:01:16]} dxc4 23. dxc4 {[%emt 0:00:58]} Bd6 {[%emt 0:04:11]} 24. Ne5 {[%emt 0:03:03]} Bxe5 {[%emt 0:01:04]} 25. fxe5 {[%emt 0:00:06]} Nd7 {[%emt 0:00:22]} 26. Nc5 {[%emt 0:03:05]} Nxc5 {[%emt 0:01:52]} 27. Bxc5 {[%emt 0:00:05]} Rd7 {[%emt 0:01:15]} 28. Rf2 {[%emt 0:02:18]} Red8 {[%emt 0:01:52]} 29. Rcf1 {[%emt 0:02:18]} Rd1 {[%emt 0:02:22]} 30. Rf8+ {[%emt 0:00:12]} Kg7 {[%emt 0:00:14]} 31. R8f7+ {[%emt 0:02:09]} Kg8 {[%emt 0:00:12]} 32. Ra7 {[%emt 0:03:04]} Bc8 {[%emt 0:01:11]} 33. Rc7 {[%emt 0:02:00]} R1d2 34. Rff7 {[%emt 0:02:05]} Rd1+ {[%emt 0:01:22]} 35. Kf2 {[%emt 0:01:08]} R1d2+ {[%emt 0:00:05]} 36. Ke3 {[%emt 0:03:08]} R2d3+ {[%emt 0:01:00]} 37. Ke4 {[%emt 0:02:06]} Bd7 {[%emt 0:00:48]} 38. Re7 {[%emt 0:00:52]} Rd1 {[%emt 0:00:19]} 39. Bd6 {[%emt 0:00:20]} Re1+ {[%emt 0:00:11]} 40. Kd3 {[%emt 0:02:14]} Rd1+ {[%emt 0:00:13]} 41. Ke4 1-0

[Event "WJCC U20 Girls 2019"]
[Site "New Delhi"]
[Date "2019.10.23"]
[Round "9.25"]
[White "Tsotsonava, Elene"]
[Black "Ferkova, Dominika"]
[Result "1-0"]
[ECO "B14"]
[WhiteElo "1905"]
[BlackElo "2096"]
[Annotator "NA"]
[PlyCount "95"]
[EventDate "2019.10.15"]
[EventType "swiss"]
[EventCountry "IND"]
[SourceTitle "playchess.com"]
[Source "ChessBase"]
[SourceQuality "1"]
[TimeControl "40/5400+30:1800+30"]

1. e4 {[%emt 0:00:00]} c6 {[%emt 0:00:00]} 2. d4 {[%emt 0:00:00]} d5 {[%emt 0:00:00]} 3. exd5 {[%emt 0:00:00]} cxd5 {[%emt 0:00:00]} 4. c4 {[%emt 0:00:00]} Nf6 {[%emt 0:00:01]} 5. Nc3 {[%emt 0:00:07]} g6 {[%emt 0:00:34]} 6. Qb3 {[%emt 0:00:46]} e6 {[%emt 0:01:42]} 7. Nf3 {[%emt 0:07:54]} Nc6 {[%emt 0:04:14]} 8. c5 {[%emt 0:03:20]} Ne4 {[%emt 0:12:40]} 9. Bb5 {[%emt 0:05:38]} Bg7 {[%emt 0:07:08]} 10. Bf4 {[%emt 0:03:40]} O-O {[%emt 0:05:51]} 11. Bxc6 {[%emt 0:00:36]} bxc6 {[%emt 0:00:25]} 12. O-O {[%emt 0:00:17]} f6 $11 {[%emt 0:21:51]} 13. Rfe1 {[%emt 0:10:10]} g5 {[%emt 0:04:57]} 14. Bg3 {[%emt 0:03:27]} Nxg3 {[%emt 0:02:35]} 15. hxg3 {[%emt 0:03:06]} Kh8 {[%emt 0:02:25]} 16. g4 {[%emt 0:05:38]} e5 {[%emt 0:04:57]} 17. dxe5 {[%emt 0:06:54]} Bxg4 {[%emt 0:00:20]} 18. e6 {[%emt 0:04:51]} Qc8 {[%emt 0:02:20]} 19. Nd4 {[%emt 0:07:59]} Re8 {[%emt 0:01:44]} 20. e7 {[%emt 0:09:05]} Qd7 {[%emt 0:05:22]} 21. Qa4 {[%emt 0:02:13]} Rac8 {[%emt 0:03:38]} 22. Re3 {[%emt 0:09:10]} f5 {[%emt 0:07:46]} 23. f3 {[%emt 0:00:52]} Rxe7 {[%emt 0:02:30]} 24. Rae1 {[%emt 0:03:46]} Rxe3 {[%emt 0:01:01]} 25. Rxe3 {[%emt 0:00:39]} f4 {[%emt 0:01:53]} 26. Re2 {[%emt 0:01:24]} Bh5 {[%emt 0:00:15]} 27. Re6 {[%emt 0:02:43]} Be8 {[%emt 0:00:16]} 28. Rd6 {[%emt 0:01:52]} Qb7 {[%emt 0:01:26]} 29. Ne6 {[%emt 0:03:08]} Be5 {[%emt 0:02:47]} 30. Qc2 {[%emt 0:02:36]} Qe7 {[%emt 0:02:32]} 31. Qf5 {[%emt 0:01:19]} Bf6 {[%emt 0:00:51]} 32. Nxf4 {[%emt 0:01:32]} gxf4 {[%emt 0:01:20]} 33. Qxf6+ {[%emt 0:00:41]} Qxf6 {[%emt 0:00:05]} 34. Rxf6 {[%emt 0:00:03]} Kg7 {[%emt 0:00:14]} 35. Rxf4 {[%emt 0:00:06]} Bg6 {[%emt 0:00:05]} 36. Kf2 {[%emt 0:00:17]} Rb8 {[%emt 0:00:15]} 37. b3 {[%emt 0:01:09]} Re8 {[%emt 0:00:29]} 38. Ra4 {[%emt 0:00:37]} Re7 {[%emt 0:00:12]} 39. Ne2 {[%emt 0:00:12]} Kf6 {[%emt 0:01:12]} 40. Nd4 {[%emt 0:00:18]} Be8 {[%emt 0:00:08]} 41. Ra6 {[%emt 0:30:12]} Rc7 {[%emt 0:30:55]} 42. Nb5 {[%emt 0:01:21]} Re7 {[%emt 0:00:51]} 43. Nd6 {[%emt 0:01:08]} Bd7 {[%emt 0:00:16]} 44. Rxa7 {[%emt 0:00:00]} Ke5 {[%emt 0:00:00]} 45. Ke3 {[%emt 0:00:00]} d4+ {[%emt 0:00:00]} 46. Kd2 {[%emt 0:00:00]} Kd5 {[%emt 0:00:00]} 47. Ne4 {[%emt 0:00:00]} Rf7 {[%emt 0:00:00]} 48. Rxd7+ {[%emt 0:00:00]} 1-0

[Event "WJCC U20 Girls 2019"]
[Site "New Delhi"]
[Date "2019.10.23"]
[Round "9.26"]
[White "Toshali, V."]
[Black "Bauyrzhan, Arnash"]
[Result "1/2-1/2"]
[ECO "D02"]
[WhiteElo "1868"]
[BlackElo "2075"]
[Annotator "NA"]
[PlyCount "94"]
[EventDate "2019.10.15"]
[EventType "swiss"]
[EventCountry "IND"]
[SourceTitle "playchess.com"]
[Source "ChessBase"]
[SourceQuality "1"]
[TimeControl "40/5400+30:1800+30"]

1. d4 {[%emt 0:00:00]} d5 {[%emt 0:00:00]} 2. Nf3 {[%emt 0:00:00]} Nf6 {[%emt 0:00:19]} 3. Bf4 {[%emt 0:00:00]} e6 {[%emt 0:00:11]} 4. e3 {[%emt 0:00:00]} Bd6 {[%emt 0:00:36]} 5. Ne5 {[%emt 0:02:07]} O-O {[%emt 0:02:07]} 6. Nd2 {[%emt 0:01:33]} c5 {[%emt 0:00:25]} 7. c3 {[%emt 0:01:38]} Qc7 {[%emt 0:02:58]} 8. Bg3 {[%emt 0:03:19]} Nbd7 {[%emt 0:01:09]} 9. f4 {[%emt 0:00:58]} Ne4 {[%emt 0:00:52]} 10. Bd3 {[%emt 0:04:04]} f5 {[%emt 0:06:37]} 11. Ndf3 {[%emt 0:06:54]} Ndf6 {[%emt 0:19:32]} 12. Bh4 $15 {[%emt 0:05:55]} c4 {[%emt 0:03:14]} 13. Bxe4 {[%emt 0:06:02]} dxe4 {[%emt 0:05:13]} 14. Nd2 {[%emt 0:03:54]} b5 {[%emt 0:06:39]} 15. O-O {[%emt 0:09:50]} Nd5 {[%emt 0:04:00]} 16. Qe2 {[%emt 0:03:37]} Bxe5 {[%emt 0:04:13]} 17. fxe5 Bb7 {[%emt 0:02:02]} 18. a4 {[%emt 0:05:52]} a6 {[%emt 0:00:42]} 19. axb5 {[%emt 0:02:41]} axb5 {[%emt 0:00:06]} 20. Rxa8 {[%emt 0:00:42]} Rxa8 {[%emt 0:06:26]} 21. g4 {[%emt 0:00:53]} b4 {[%emt 0:21:40]} 22. gxf5 {[%emt 0:08:02]} bxc3 {[%emt 0:02:51]} 23. bxc3 {[%emt 0:00:16]} exf5 {[%emt 0:02:51]} 24. Rxf5 {[%emt 0:12:14]} Ra1+ {[%emt 0:00:33]} 25. Nf1 {[%emt 0:03:17]} Qc8 {[%emt 0:01:36]} 26. Rg5 {[%emt 0:04:24]} Qh3 {[%emt 0:04:53]} 27. Be1 {[%emt 0:00:48]} Nxc3 {[%emt 0:06:14]} 28. Qxc4+ {[%emt 0:05:25]} Nd5 {[%emt 0:00:07]} 29. Rg3 {[%emt 0:00:52]} Qe6 {[%emt 0:00:51]} 30. Qb3 {[%emt 0:03:39]} Qa6 {[%emt 0:01:17]} 31. Kf2 {[%emt 0:01:52]} Qa8 {[%emt 0:00:14]} 32. Bb4 {[%emt 0:02:58]} Qc8 {[%emt 0:01:11]} 33. Nd2 {[%emt 0:01:09]} h5 {[%emt 0:00:32]} 34. Bc5 {[%emt 0:00:39]} Kh7 {[%emt 0:00:48]} 35. Kg2 {[%emt 0:00:46]} h4 {[%emt 0:00:29]} 36. Rg5 {[%emt 0:00:13]} h3+ {[%emt 0:00:32]} 37. Kf2 {[%emt 0:00:42]} Rh1 {[%emt 0:00:15]} 38. Nxe4 {[%emt 0:00:43]} Rxh2+ {[%emt 0:00:17]} 39. Kg1 {[%emt 0:00:38]} Rg2+ {[%emt 0:00:21]} 40. Rxg2 {[%emt 0:00:08]} hxg2 {[%emt 0:00:01]} 41. e6 {[%emt 0:11:57]} Bc6 {[%emt 0:02:09]} 42. Qb1 {[%emt 0:01:35]} Kh6 {[%emt 0:06:08]} 43. Qe1 {[%emt 0:11:57]} Qxe6 {[%emt 0:02:11]} 44. Qh4+ {[%emt 0:00:41]} Kg6 {[%emt 0:00:06]} 45. Qg3+ {[%emt 0:00:41]} Kh6 {[%emt 0:00:18]} 46. Qh4+ {[%emt 0:00:36]} Kg6 {[%emt 0:00:06]} 47. Qg3+ {[%emt 0:00:52]} Kh6 {[%emt 0:00:06]} 1/2-1/2

[Event "WJCC U20 Girls 2019"]
[Site "New Delhi"]
[Date "2019.10.23"]
[Round "9.27"]
[White "Obregon Garcia, Roxangel"]
[Black "Mungunzul, Bat-Erdene"]
[Result "1-0"]
[ECO "C78"]
[WhiteElo "2267"]
[BlackElo "1912"]
[Annotator "ChessBase"]
[PlyCount "85"]
[EventDate "2019.10.15"]
[EventType "swiss"]
[EventCountry "IND"]
[SourceTitle "playchess.com"]
[Source "ChessBase"]
[SourceQuality "1"]
[TimeControl "40/5400+30:1800+30"]

1. e4 {[%emt 0:00:00]} e5 {[%emt 0:00:00]} 2. Nf3 {[%emt 0:00:00]} Nc6 {[%emt 0:00:00]} 3. Bb5 {[%emt 0:00:00]} a6 {[%emt 0:00:00]} 4. Ba4 {[%emt 0:00:00]} Nf6 {[%emt 0:00:12]} 5. O-O {[%emt 0:00:00]} b5 {[%emt 0:00:19]} 6. Bb3 {[%emt 0:00:00]} Bc5 {[%emt 0:00:11]} 7. c3 {[%emt 0:00:49]} d6 {[%emt 0:00:22]} 8. d4 {[%emt 0:00:29]} Bb6 {[%emt 0:00:48]} 9. a4 {[%emt 0:00:43]} Rb8 {[%emt 0:04:09]} 10. a5 {[%emt 0:01:10]} Ba7 {[%emt 0:06:46]} 11. Be3 {[%emt 0:02:27]} Bg4 {[%emt 0:09:29]} 12. dxe5 {[%emt 0:22:58]} Bxf3 {[%emt 0:03:31]} 13. Qxf3 {[%emt 0:00:23]} Nxe5 {[%emt 0:01:14]} 14. Qg3 {[%emt 0:07:26]} Bxe3 {[%emt 0:00:21]} 15. Qxe3 {[%emt 0:00:34]} O-O {[%emt 0:03:54]} 16. Nd2 {[%emt 0:05:44]} Re8 {[%emt 0:06:07]} 17. f3 {[%emt 0:02:00]} c5 {[%emt 0:17:41]} 18. Rfd1 {[%emt 0:13:38]} Nc6 {[%emt 0:03:09]} 19. Nf1 {[%emt 0:07:17]} Nxa5 {[%emt 0:06:30]} 20. Bc2 {[%emt 0:01:26]} Nc4 {[%emt 0:00:13]} 21. Qf4 {[%emt 0:03:03]} Rb6 {[%emt 0:01:33]} 22. b3 {[%emt 0:02:16]} Ne5 {[%emt 0:00:36]} 23. Ng3 {[%emt 0:02:58]} g6 {[%emt 0:02:23]} 24. Rd2 {[%emt 0:01:57]} Re6 {[%emt 0:06:06]} 25. Rad1 {[%emt 0:00:50]} Qf8 {[%emt 0:01:44]} 26. Qg5 {[%emt 0:09:43]} h6 {[%emt 0:09:09]} 27. Qe3 {[%emt 0:00:59]} Ne8 {[%emt 0:00:43]} 28. Ne2 {[%emt 0:07:59]} Nc7 {[%emt 0:06:55]} 29. f4 {[%emt 0:05:18]} Nc6 {[%emt 0:03:05]} 30. Qg3 {[%emt 0:00:57]} Ne7 {[%emt 0:04:05]} 31. f5 {[%emt 0:01:33]} Rf6 {[%emt 0:00:10]} 32. Nf4 {[%emt 0:00:29]} Qg7 {[%emt 0:01:10]} 33. fxg6 {[%emt 0:00:35]} fxg6 {[%emt 0:00:38]} 34. e5 {[%emt 0:00:27]} dxe5 {[%emt 0:00:51]} 35. Rd8+ {[%emt 0:00:03]} Rf8 {[%emt 0:00:59]} 36. Rxf8+ Kxf8 {[%emt 0:00:31]} 37. Rd8+ {[%emt 0:00:26]} Ne8 {[%emt 0:00:30]} 38. Nd3 {[%emt 0:00:29]} Nc6 {[%emt 0:00:56]} 39. Qf2+ {[%emt 0:00:58]} Ke7 {[%emt 0:00:37]} 40. Rd5 {[%emt 0:00:34]} Nd8 {[%emt 0:00:45]} 41. Qxc5+ {[%emt 0:01:23]} Rd6 {[%emt 0:00:19]} 42. Rxd6 {[%emt 0:00:36]} Nxd6 {[%emt 0:00:11]} 43. Qc7+ {[%emt 0:00:02]} 1-0

[Event "WJCC U20 Girls 2019"]
[Site "New Delhi"]
[Date "2019.10.23"]
[Round "9.28"]
[White "Cosme Contreras, Trilce"]
[Black "Ulziikhishigjargal, Ochirkhuyag"]
[Result "0-1"]
[ECO "E48"]
[WhiteElo "2027"]
[BlackElo "2194"]
[Annotator "ChessBase"]
[PlyCount "76"]
[EventDate "2019.10.15"]
[EventType "swiss"]
[EventCountry "IND"]
[SourceTitle "playchess.com"]
[Source "ChessBase"]
[SourceQuality "1"]
[TimeControl "40/5400+30:1800+30"]

1. d4 {[%emt 0:03:22]} Nf6 {[%emt 0:00:00]} 2. c4 {[%emt 0:00:18]} e6 {[%emt 0:00:00]} 3. Nc3 {[%emt 0:00:35]} Bb4 {[%emt 0:00:15]} 4. e3 {[%emt 0:01:45]} O-O {[%emt 0:00:40]} 5. Bd3 {[%emt 0:00:42]} d5 {[%emt 0:00:17]} 6. Nge2 {[%emt 0:01:32]} dxc4 {[%emt 0:00:57]} 7. Bxc4 {[%emt 0:00:12]} c5 {[%emt 0:00:03]} 8. O-O {[%emt 0:01:56]} Nc6 {[%emt 0:02:46]} 9. Bd3 {[%emt 0:21:54]} b6 {[%emt 0:06:34]} 10. a3 {[%emt 0:00:38]} Bxc3 {[%emt 0:02:00]} 11. bxc3 {[%emt 0:00:05]} Bb7 {[%emt 0:00:47]} 12. Bb2 {[%emt 0:01:39]} Qe7 {[%emt 0:07:08]} 13. Ng3 {[%emt 0:12:15]} Rfd8 {[%emt 0:05:08]} 14. Qe2 {[%emt 0:02:25]} a6 {[%emt 0:09:40]} 15. Rad1 {[%emt 0:01:18]} b5 {[%emt 0:01:16]} 16. c4 {[%emt 0:03:49]} bxc4 {[%emt 0:01:20]} 17. Bxc4 {[%emt 0:04:40]} cxd4 {[%emt 0:00:15]} 18. exd4 {[%emt 0:02:30]} Nd5 {[%emt 0:00:07]} 19. f3 {[%emt 0:06:06]} Na5 {[%emt 0:03:36]} 20. Ba2 {[%emt 0:02:49]} Bc6 {[%emt 0:03:50]} 21. Qd2 {[%emt 0:02:42]} Nb7 {[%emt 0:01:40]} 22. Ne4 {[%emt 0:02:59]} Bb5 {[%emt 0:04:04]} 23. Rfe1 {[%emt 0:02:15]} Qh4 {[%emt 0:02:41]} 24. Nc3 {[%emt 0:06:01]} Nxc3 {[%emt 0:05:07]} 25. Bxc3 {[%emt 0:00:40]} Nd6 {[%emt 0:03:56]} 26. Ba5 {[%emt 0:02:39]} Rd7 {[%emt 0:04:28]} 27. Qb4 {[%emt 0:06:58]} Rc8 {[%emt 0:09:49]} 28. Rc1 {[%emt 0:01:26]} Rxc1 {[%emt 0:06:11]} 29. Rxc1 {[%emt 0:00:04]} h6 {[%emt 0:00:25]} 30. a4 {[%emt 0:01:55]} Qf4 {[%emt 0:01:49]} 31. Re1 {[%emt 0:03:14]} Bc4 {[%emt 0:02:44]} 32. Qb8+ {[%emt 0:00:25]} Kh7 {[%emt 0:00:05]} 33. Bb1+ {[%emt 0:00:13]} g6 {[%emt 0:00:13]} 34. Bc3 {[%emt 0:00:46]} Bd5 {[%emt 0:00:57]} 35. Bc2 {[%emt 0:02:51]} Rb7 {[%emt 0:00:25]} 36. Qf8 {[%emt 0:01:14]} Rc7 {[%emt 0:00:20]} 37. Bb4 {[%emt 0:00:16]} Rxc2 {[%emt 0:00:26]} 38. Rf1 {[%emt 0:00:39]} Qxd4+ {[%emt 0:00:15]} 0-1